bitfinex/quotes_ETHUSD_20230103
["timestamp","ask_amount","ask_price","bid_price","bid_amount"]
[1672769609462,3.84076952,1208.8,1208.7,33.99534474]
[1672769610078,3.84076952,1208.8,1208.7,33.93534474]
[1672769611931,3.90676952,1208.9,1208.7,43.86336474]
[1672769612161,3.84076952,1208.9,1208.7,43.86336474]
[1672769613059,3.84076952,1208.9,1208.7,33.93534474]
[1672769613287,3.84076952,1208.9,1208.8,4.14886114]
[1672769613500,3.84076952,1208.9,1208.8,33.93046114]
[1672769613820,3.84076952,1208.9,1208.8,33.99646114]
[1672769620542,3.84076952,1208.9,1208.8,14.14206114]
[1672769620755,5.05191647,1208.9,1208.8,14.14206114]
[1672769621064,5.11791647,1208.9,1208.8,4.21486114]
[1672769621222,5.11791647,1208.9,1208.8,4.14886114]
[1672769621434,5.11791647,1208.9,1208.7,9.99362]
[1672769621435,10.61791647,1208.9,1208.7,9.99362]
[1672769621665,3.84076952,1208.8,1208.7,24.07022114]
[1672769621890,14.82976117,1208.8,1208.7,4.21486114]
[1672769622098,19.23810918,1208.8,1208.7,4.14886114]
[1672769622539,9.31090918,1208.8,1208.7,4.14886114]
[1672769623217,9.31090918,1208.8,1208.6,28.53914575]
[1672769623218,10.09842901,1208.8,1208.6,0.28242575]
[1672769623487,8.18234969,1208.7,1208.6,0.21642575]
[1672769623696,17.17579061,1208.7,1208.6,0.21642575]
[1672769624747,17.17779061,1208.7,1208.6,0.21642575]
[1672769626265,12.83621044,1208.7,1208.6,0.21642575]
[1672769626470,17.17779061,1208.7,1208.6,0.21642575]
[1672769628216,12.83621044,1208.7,1208.6,0.21642575]
[1672769628614,11.0530123,1208.7,1208.6,0.21642575]
[1672769628956,7.62357138,1208.7,1208.6,20.07410575]
[1672769629179,7.62357138,1208.7,1208.6,20.14010575]
[1672769629905,7.62357138,1208.7,1208.6,30.06894575]
[1672769634283,7.62357138,1208.7,1208.6,34.21411502]
[1672769634850,7.62357138,1208.7,1208.6,37.71005275]
[1672769635059,3.90676952,1208.7,1208.6,37.71005275]
[1672769635263,3.90676952,1208.7,1208.6,34.21411502]
[1672769635264,3.84076952,1208.7,1208.6,34.21411502]
[1672769635475,7.55757138,1208.7,1208.6,37.70930248]
[1672769635796,7.62357138,1208.7,1208.6,34.21411502]
[1672769637097,7.62357138,1208.7,1208.6,4.42759502]
[1672769637308,17.78446867,1208.7,1208.6,4.36159502]
[1672769637522,19.33478952,1208.7,1208.6,4.36159502]
[1672769638065,33.60438969,1208.7,1208.6,4.36159502]
[1672769638236,29.26280952,1208.7,1208.6,4.36159502]
[1672769639595,29.26280952,1208.7,1208.6,0.21273388]
[1672769639596,33.60438969,1208.7,1208.6,0.21273388]
[1672769639809,48.71333666,1208.7,1208.6,0.21273388]
[1672769640324,52.16972433,1208.7,1208.6,0.21273388]
[1672769640540,47.03985649,1208.7,1208.6,0.21273388]
[1672769641095,57.15895659,1208.7,1208.6,0.21273388]
[1672769642158,57.15883003,1208.7,1208.6,0.21273388]
[1672769642382,52.03985649,1208.7,1208.6,0.21273388]
[1672769642898,57.15952357,1208.7,1208.6,0.21273388]
[1672769643260,52.03985649,1208.7,1208.6,0.21273388]
[1672769643720,58.19617371,1208.7,1208.6,0.21273388]
[1672769644517,57.15527124,1208.7,1208.6,0.21273388]
[1672769644943,67.08329124,1208.7,1208.6,0.21273388]
[1672769646332,47.22725124,1208.7,1208.6,0.21273388]
[1672769647916,42.11183649,1208.7,1208.6,0.21273388]
[1672769648270,47.22725124,1208.7,1208.6,0.21273388]
[1672769648595,57.15527124,1208.7,1208.6,0.21273388]
[1672769649468,47.22725124,1208.7,1208.6,0.21273388]
[1672769649912,57.15527124,1208.7,1208.6,0.21273388]
[1672769650267,52.03985649,1208.7,1208.6,0.21273388]
[1672769651711,26.58302377,1208.7,1208.6,0.21273388]
[1672769651931,26.58302377,1208.7,1208.6,10.14157388]
[1672769652105,26.58502377,1208.7,1208.6,10.20757388]
[1672769652313,26.58502377,1208.7,1208.6,20.13641388]
[1672769652524,26.58502377,1208.7,1208.6,0.27873388]
[1672769652783,26.58502377,1208.7,1208.6,0.21273388]
[1672769652973,26.58508409,1208.7,1208.6,0.21273388]
[1672769653400,22.10779649,1208.7,1208.6,0.21273388]
[1672769653723,51.88985649,1208.7,1208.6,0.21273388]
[1672769653908,56.21710419,1208.7,1208.6,0.21273388]
[1672769654466,54.32183223,1208.7,1208.6,0.21273388]
[1672769654681,42.34681223,1208.7,1208.6,0.21273388]
[1672769656210,47.94758453,1208.7,1208.6,0.21273388]
[1672769656477,42.34799099,1208.7,1208.6,0.21273388]
[1672769656696,52.27601099,1208.7,1208.6,0.21273388]
[1672769657049,53.06299928,1208.7,1208.6,0.21273388]
[1672769657301,47.94758453,1208.7,1208.6,0.21273388]
[1672769657513,53.06299928,1208.7,1208.6,0.21273388]
[1672769657848,52.27598483,1208.7,1208.6,0.21273388]
[1672769658215,47.94758453,1208.7,1208.6,0.21273388]
[1672769658442,53.06299928,1208.7,1208.6,0.21273388]
[1672769659821,47.94758453,1208.7,1208.6,0.21273388]
[1672769660260,53.06299928,1208.7,1208.6,0.21273388]
[1672769661111,47.94758453,1208.7,1208.6,0.21273388]
[1672769661484,53.06299928,1208.7,1208.6,0.21273388]
[1672769662749,48.06299928,1208.7,1208.6,0.21273388]
[1672769663169,38.13497928,1208.7,1208.6,0.21273388]
[1672769663412,28.20695928,1208.7,1208.6,0.21273388]
[1672769663849,33.20695928,1208.7,1208.6,0.21273388]
[1672769664008,32.42348966,1208.7,1208.6,0.21273388]
[1672769664221,43.13497928,1208.7,1208.6,0.21273388]
[1672769664481,46.13497928,1208.7,1208.6,0.21273388]
[1672769664886,36.20695928,1208.7,1208.6,0.21273388]
[1672769665265,46.13497928,1208.7,1208.6,0.21273388]
[1672769665532,24.87366175,1208.7,1208.6,0.21273388]
[1672769665683,19.69273478,1208.7,1208.6,0.21273388]
[1672769666533,14.19273478,1208.7,1208.6,10.14157388]
[1672769666706,19.69273478,1208.7,1208.6,0.27873388]
[1672769667022,19.69273478,1208.7,1208.5,19.58082788]
[1672769667023,14.19273478,1208.7,1208.5,19.58082788]
[1672769667231,7.35814725,1208.6,1208.5,19.58082788]
[1672769667454,7.42214725,1208.6,1208.5,19.58082788]
[1672769667801,3.77700885,1208.6,1208.5,19.58082788]
[1672769667953,3.71300885,1208.6,1208.5,23.4221674]
[1672769668131,3.71300885,1208.6,1208.5,36.50900319]
[1672769669643,7.26560223,1208.6,1208.5,22.73857367]
[1672769669856,7.32960223,1208.6,1208.5,22.73857367]
[1672769670314,7.32960223,1208.6,1208.5,19.58139788]
[1672769671764,7.32969003,1208.6,1208.5,19.58139788]
[1672769671969,3.77700885,1208.6,1208.5,19.58139788]
[1672769672181,3.71300885,1208.6,1208.5,19.58139788]
[1672769673169,7.26563748,1208.6,1208.5,19.58139788]
[1672769673379,7.32963748,1208.6,1208.5,19.58139788]
[1672769674016,7.32963748,1208.6,1208.5,9.65173788]
[1672769674236,7.94786585,1208.6,1208.5,9.65173788]
[1672769674711,7.94786585,1208.6,1208.5,9.85543196]
[1672769675888,3.61662863,1208.6,1208.5,9.85543196]
[1672769676193,7.88386585,1208.6,1208.5,9.85543196]
[1672769676337,7.94786585,1208.6,1208.5,9.85543196]
[1672769680594,7.94986585,1208.6,1208.5,9.85343196]
[1672769680812,7.94786585,1208.6,1208.5,9.85543196]
[1672769683981,17.87670585,1208.6,1208.5,0.26969408]
[1672769684324,32.64061791,1208.6,1208.5,0.20369408]
[1672769684692,22.71177791,1208.6,1208.5,0.20369408]
[1672769684903,12.78293791,1208.6,1208.5,0.20369408]
[1672769685112,12.82891331,1208.6,1208.5,29.99267408]
[1672769685344,7.99606462,1208.6,1208.5,30.05867408]
[1672769685741,7.99606462,1208.6,1208.5,20.12901408]
[1672769686674,7.99606462,1208.6,1208.5,10.19935408]
[1672769686809,7.99606463,1208.6,1208.5,30.05867408]
[1672769687024,4.39523722,1208.6,1208.5,30.05867408]
[1672769687214,4.33123722,1208.6,1208.5,30.05867408]
[1672769687424,4.33123722,1208.6,1208.5,30.05481585]
[1672769690174,4.33123722,1208.6,1208.5,20.12515585]
[1672769691056,7.92978327,1208.6,1208.5,20.12515585]
[1672769691277,7.99378327,1208.6,1208.5,20.12515585]
[1672769691959,4.39523722,1208.6,1208.5,20.12515585]
[1672769692160,4.33123722,1208.6,1208.5,20.12515585]
[1672769695363,4.33123722,1208.6,1208.5,10.19549585]
[1672769695954,4.33123722,1208.6,1208.5,20.12515585]
[1672769696311,7.99653668,1208.7,1208.5,10.19549585]
[1672769696470,13.42773782,1208.7,1208.5,10.19549585]
[1672769696683,4.33123722,1208.6,1208.5,10.19549585]
[1672769698383,7.93195698,1208.6,1208.5,10.19549585]
[1672769698594,4.39523722,1208.6,1208.5,10.19549585]
[1672769698811,4.33123722,1208.6,1208.5,10.19549585]
[1672769700198,7.93172999,1208.6,1208.5,10.19549585]
[1672769700412,7.99578591,1208.6,1208.5,10.19549585]
[1672769700784,4.39523722,1208.6,1208.5,10.19549585]
[1672769701030,7.93165765,1208.6,1208.5,10.19549585]
[1672769701220,7.99565765,1208.6,1208.5,10.19549585]
[1672769702058,7.99565765,1208.6,1208.5,33.89558537]
[1672769702366,7.99565765,1208.6,1208.5,30.05481585]
[1672769702599,7.99565765,1208.6,1208.5,20.12515585]
[1672769702833,7.99565765,1208.6,1208.5,38.04444651]
[1672769702834,3.78620769,1208.6,1208.5,38.04444651]
[1672769702979,7.53548002,1208.6,1208.5,38.04444651]
[1672769703184,7.59948002,1208.6,1208.5,38.04444651]
[1672769703402,3.78620769,1208.6,1208.5,38.04444651]
[1672769703731,4.39723722,1208.7,1208.5,34.20367699]
[1672769703942,4.33123722,1208.7,1208.5,38.04444651]
[1672769704309,3.72289456,1208.6,1208.5,38.04444651]
[1672769704526,3.72289456,1208.6,1208.5,34.20367699]
[1672769704687,3.72289456,1208.6,1208.5,38.04444651]
[1672769704896,3.72283063,1208.6,1208.5,34.20367699]
[1672769705148,4.33123722,1208.6,1208.5,34.20367699]
[1672769705553,4.39723722,1208.7,1208.5,34.20367699]
[1672769705792,4.39723722,1208.7,1208.5,14.34435699]
[1672769705793,4.33123722,1208.6,1208.5,14.34435699]
[1672769706010,34.11775722,1208.6,1208.5,0.26583585]
[1672769706328,14.32407722,1208.6,1208.5,0.19983585]
[1672769706643,4.39523722,1208.6,1208.5,0.19983585]
[1672769706826,4.33123722,1208.6,1208.5,0.19983585]
[1672769707696,7.88027242,1208.6,1208.5,0.19728487]
[1672769707856,17.87311242,1208.6,1208.5,0.19728487]
[1672769708070,7.94427242,1208.6,1208.5,0.19728487]
[1672769709158,11.62513399,1208.6,1208.5,0.19728487]
[1672769714127,17.12513399,1208.6,1208.5,0.19728487]
[1672769715495,27.05397399,1208.6,1208.5,0.19728487]
[1672769715723,36.98281399,1208.6,1208.5,0.19728487]
[1672769715937,46.91165399,1208.6,1208.5,0.19728487]
[1672769716467,27.05397399,1208.6,1208.5,0.19728487]
[1672769716679,36.98281399,1208.6,1208.5,0.19728487]
[1672769717036,37.76699152,1208.6,1208.5,0.19728487]
[1672769717918,17.90931152,1208.6,1208.5,0.19728487]
[1672769718129,17.13657404,1208.6,1208.5,0.19728487]
[1672769718354,17.13659901,1208.6,1208.5,0.19728487]
[1672769719352,12.79389677,1208.6,1208.5,0.19728487]
[1672769719564,17.13622379,1208.6,1208.5,0.19728487]
[1672769719776,12.79389677,1208.6,1208.5,0.19728487]
[1672769719986,17.13598541,1208.6,1208.5,0.19728487]
[1672769720763,17.13594975,1208.6,1208.5,0.19728487]
[1672769721167,17.90931152,1208.6,1208.5,0.19728487]
[1672769721345,27.83815152,1208.6,1208.5,0.19728487]
[1672769722923,22.72273677,1208.6,1208.5,0.19728487]
[1672769723932,17.22273677,1208.6,1208.5,0.19728487]
[1672769724245,11.63458573,1208.6,1208.5,0.19728487]
[1672769724604,7.95372416,1208.6,1208.5,0.19728487]
[1672769726503,17.88256416,1208.6,1208.5,0.19728487]
[1672769727822,22.88264472,1208.6,1208.5,0.19728487]
[1672769728179,22.88264472,1208.6,1208.5,0.19393428]
[1672769730337,37.92689947,1208.6,1208.5,0.19393428]
[1672769730548,32.81148472,1208.6,1208.5,0.19393428]
[1672769730777,37.92689947,1208.6,1208.5,0.19393428]
[1672769732313,32.81148472,1208.6,1208.5,0.19393428]
[1672769732844,22.88264472,1208.6,1208.5,0.19393428]
[1672769733271,27.22288178,1208.6,1208.5,0.19393428]
[1672769733478,22.88264472,1208.6,1208.5,0.19393428]
[1672769734467,27.22262375,1208.6,1208.5,0.19393428]
[1672769735151,17.29378375,1208.6,1208.5,0.19393428]
[1672769736770,17.29378375,1208.6,1208.5,10.12359428]
[1672769736988,13.74474855,1208.6,1208.5,10.18959428]
[1672769737932,13.74474855,1208.6,1208.5,0.25993428]
[1672769738080,13.74474855,1208.6,1208.5,0.19393428]
[1672769738456,8.24474855,1208.6,1208.5,0.19393428]
[1672769741705,8.24474855,1208.6,1208.5,10.12359428]
[1672769741979,8.24474855,1208.6,1208.5,10.18959428]
[1672769742293,3.90476952,1208.6,1208.5,33.21006887]
[1672769742482,3.84076952,1208.6,1208.5,33.21006887]
[1672769742706,7.56209481,1208.6,1208.5,33.21006887]
[1672769743024,7.56209481,1208.6,1208.5,55.93497411]
[1672769743025,8.12547438,1208.6,1208.5,55.93497411]
[1672769743241,3.78549535,1208.6,1208.5,55.93497411]
[1672769743383,3.72149535,1208.6,1208.5,55.93497411]
[1672769744256,3.72149535,1208.6,1208.5,46.00531411]
[1672769744475,3.72149535,1208.6,1208.5,46.00131411]
[1672769744682,7.56226487,1208.6,1208.5,46.00131411]
[1672769744901,7.62626487,1208.6,1208.5,46.00131411]
[1672769745098,7.62626487,1208.6,1208.5,43.94131411]
[1672769745526,7.62626487,1208.6,1208.5,39.41922528]
[1672769746541,28.10242855,1208.6,1208.5,2.31993428]
[1672769746751,28.10242855,1208.6,1208.5,0.19393428]
[1672769746752,8.24474855,1208.6,1208.5,0.19393428]
[1672769747010,10.06226041,1208.6,1208.5,0.19393428]
[1672769749071,6.22149089,1208.6,1208.5,0.19393428]
[1672769749818,11.72149089,1208.6,1208.5,0.19393428]
[1672769752183,6.22149089,1208.6,1208.5,0.19007966]
[1672769753226,6.22149089,1208.6,1208.5,10.11973966]
[1672769753419,6.22149089,1208.6,1208.5,30.04505966]
[1672769753420,3.7839188,1208.6,1208.5,30.04505966]
[1672769753631,3.7839188,1208.6,1208.5,33.88582918]
[1672769753632,3.7199188,1208.6,1208.5,33.88582918]
[1672769755270,3.71769767,1208.6,1208.5,33.88582918]
[1672769755480,3.71769767,1208.6,1208.5,30.04505966]
[1672769757497,5.02707903,1208.7,1208.5,30.04505966]
[1672769757707,7.64621841,1208.7,1208.5,30.04505966]
[1672769759318,7.02511841,1208.7,1208.5,10.18573966]
[1672769759683,4.33997903,1208.6,1208.5,10.18573966]
[1672769761154,4.33997903,1208.6,1208.5,20.11539966]
[1672769762155,7.02511841,1208.7,1208.5,20.11539966]
[1672769762365,4.33997903,1208.6,1208.5,20.11539966]
[1672769763109,7.02511841,1208.7,1208.5,20.11539966]
[1672769763467,7.02511841,1208.7,1208.5,33.88582918]
[1672769763684,3.71990978,1208.6,1208.5,47.96435032]
[1672769763895,4.40597903,1208.7,1208.5,47.96435032]
[1672769764104,4.33997903,1208.7,1208.5,47.96435032]
[1672769764309,4.33997903,1208.7,1208.5,38.03469032]
[1672769764947,4.33997903,1208.6,1208.5,34.1939208]
[1672769765322,4.33997903,1208.6,1208.5,14.3346008]
[1672769765707,4.33997903,1208.6,1208.5,4.4049408]
[1672769765899,4.33997903,1208.6,1208.5,14.2686008]
[1672769766108,4.33997903,1208.6,1208.5,14.3346008]
[1672769766319,5.29211841,1208.6,1208.5,10.18573966]
[1672769766569,5.35611841,1208.6,1208.5,10.18573966]
[1672769766781,5.35811841,1208.6,1208.5,10.18373966]
[1672769766949,5.35611841,1208.6,1208.5,10.18573966]
[1672769773835,5.35611841,1208.6,1208.5,0.25607966]
[1672769774112,20.87381938,1208.6,1208.5,0.19007966]
[1672769774418,25.21413208,1208.6,1208.5,0.19007966]
[1672769774783,20.87381938,1208.6,1208.5,0.19007966]
[1672769774992,16.44497938,1208.6,1208.5,0.19007966]
[1672769775202,20.78509665,1208.6,1208.5,0.19007966]
[1672769775426,20.78506029,1208.6,1208.5,0.19007966]
[1672769776259,10.85622029,1208.6,1208.5,0.19007966]
[1672769777560,10.85610494,1208.6,1208.5,0.19007966]
[1672769778801,5.35610494,1208.6,1208.5,0.19007966]
[1672769779041,4.40396556,1208.6,1208.5,10.11973966]
[1672769779248,4.33996556,1208.6,1208.5,10.18573966]
[1672769779466,4.33996556,1208.6,1208.5,33.88582918]
[1672769779673,4.33996556,1208.6,1208.5,33.88236764]
[1672769780245,5.02706556,1208.7,1208.5,33.88236764]
[1672769780477,9.19758681,1208.7,1208.5,33.88236764]
[1672769781090,3.72035591,1208.6,1208.5,33.88236764]
[1672769781351,3.72046859,1208.6,1208.5,33.88236764]
[1672769782141,9.19758681,1208.7,1208.5,33.88236764]
[1672769782508,3.72017521,1208.6,1208.5,33.88236764]
[1672769782661,3.72017521,1208.6,1208.5,30.04159812]
[1672769782870,3.72017521,1208.6,1208.5,20.11193812]
[1672769783362,8.57648681,1208.7,1208.5,10.18227812]
[1672769784501,8.57648681,1208.7,1208.5,23.95270764]
[1672769785458,3.72064305,1208.6,1208.5,23.95270764]
[1672769786124,8.57648681,1208.7,1208.5,30.04159812]
[1672769786340,3.72060996,1208.6,1208.5,23.95270764]
[1672769786600,8.57648681,1208.7,1208.5,20.11193812]
[1672769786796,4.33996556,1208.6,1208.5,10.18227812]
[1672769787440,4.33996556,1208.6,1208.5,0.25261812]
[1672769787792,4.33996556,1208.6,1208.5,10.11627812]
[1672769787999,4.33996556,1208.6,1208.5,10.18227812]
[1672769788800,4.23652125,1208.7,1208.5,30.04159812]
[1672769788801,8.57648681,1208.7,1208.5,30.04159812]
[1672769789047,3.72067619,1208.6,1208.5,33.88236764]
[1672769789257,3.72067619,1208.6,1208.5,30.04159812]
[1672769789569,3.72067619,1208.6,1208.5,33.88236764]
[1672769790938,3.72067619,1208.6,1208.5,30.04159812]
[1672769791399,3.72067619,1208.6,1208.5,20.11193812]
[1672769791917,8.57648681,1208.7,1208.5,20.11193812]
[1672769792270,4.33996556,1208.6,1208.5,10.18227812]
[1672769792478,0.85764868,1208.6,1208.5,10.18227812]
[1672769792690,8.57648681,1208.7,1208.5,10.18227812]
[1672769793004,8.57648681,1208.7,1208.5,14.02304764]
[1672769793485,8.57648681,1208.7,1208.5,10.18227812]
[1672769793690,8.57648681,1208.7,1208.5,14.02304764]
[1672769794003,8.57648681,1208.7,1208.5,20.11193812]
[1672769794221,8.57648681,1208.7,1208.5,23.95270764]
[1672769794538,4.33996556,1208.6,1208.5,20.11193812]
[1672769795057,8.57648681,1208.7,1208.5,20.11193812]
[1672769796007,8.57648681,1208.7,1208.5,10.18227812]
[1672769796156,18.50452681,1208.7,1208.5,0.25261812]
[1672769796368,4.33996556,1208.6,1208.5,0.18661812]
[1672769796622,7.69456372,1208.6,1208.5,0.18661812]
[1672769796792,7.75856372,1208.6,1208.5,0.18661812]
[1672769797417,13.25856372,1208.6,1208.5,0.18661812]
[1672769798294,7.75856372,1208.6,1208.5,0.18661812]
[1672769799684,13.25856372,1208.6,1208.5,0.18661812]
[1672769800395,7.75856372,1208.6,1208.5,0.18433644]
[1672769800706,7.75856372,1208.6,1208.5,10.11399644]
[1672769800935,4.40396556,1208.6,1208.5,10.17999644]
[1672769801113,4.33996556,1208.6,1208.5,10.17999644]
[1672769806015,4.4110219,1208.6,1208.5,10.17999644]
[1672769808179,4.33996556,1208.6,1208.5,10.17999644]
[1672769809472,4.33996556,1208.6,1208.5,30.03931644]
[1672769809903,4.4110219,1208.6,1208.5,30.03931644]
[1672769810435,4.4110219,1208.6,1208.5,10.17999644]
[1672769813025,4.40815781,1208.6,1208.5,10.17999644]
[1672769813236,2.99016313,1208.6,1208.5,10.17999644]
[1672769813484,2.99016313,1208.6,1208.5,0.25033644]
[1672769813697,2.99016313,1208.6,1208.5,0.18433644]
[1672769814956,8.10557788,1208.6,1208.5,0.18433644]
[1672769815108,8.16957788,1208.6,1208.5,0.18433644]
[1672769815658,3.05416313,1208.6,1208.5,0.18433644]
[1672769815852,8.49016313,1208.6,1208.5,0.18433644]
[1672769816061,13.66957788,1208.6,1208.5,0.18433644]
[1672769816921,33.52725788,1208.6,1208.5,0.18433644]
[1672769817316,23.59841788,1208.6,1208.5,0.18433644]
[1672769819633,13.66957788,1208.6,1208.5,0.18433644]
[1672769820495,7.38842648,1208.6,1208.5,20.04365644]
[1672769820687,4.46931969,1208.6,1208.5,20.10965644]
[1672769820897,4.40531969,1208.6,1208.5,10.17999644]
[1672769821755,4.40531969,1208.6,1208.5,20.10965644]
[1672769821987,4.40531969,1208.6,1208.5,10.17999644]
[1672769822532,4.40531969,1208.6,1208.5,10.17678789]
[1672769823056,4.40531969,1208.6,1208.5,0.24712789]
[1672769823267,6.39315526,1208.6,1208.5,0.18112789]
[1672769823572,6.45715526,1208.6,1208.5,0.18112789]
[1672769823890,2.12289191,1208.6,1208.5,0.18112789]
[1672769824105,2.05889191,1208.6,1208.5,0.18112789]
[1672769824834,6.39322211,1208.6,1208.5,0.18112789]
[1672769824989,6.45722211,1208.6,1208.5,0.18112789]
[1672769827530,2.12289191,1208.6,1208.5,0.18112789]
[1672769827739,11.98773191,1208.6,1208.5,0.18112789]
[1672769827954,21.98057191,1208.6,1208.5,0.18112789]
[1672769828217,27.09598666,1208.6,1208.5,0.18112789]
[1672769828431,7.23830666,1208.6,1208.5,0.18112789]
[1672769830404,2.12289191,1208.6,1208.5,0.18112789]
[1672769830617,2.05889191,1208.6,1208.5,0.18112789]
[1672769830810,6.3937167,1208.6,1208.5,0.18112789]
[1672769831019,6.4577167,1208.6,1208.5,0.18112789]
[1672769831801,6.4577167,1208.6,1208.5,10.11078789]
[1672769831959,4.46988113,1208.6,1208.5,10.17678789]
[1672769832156,4.46988113,1208.6,1208.5,20.10644789]
[1672769832157,4.40588113,1208.6,1208.5,20.10644789]
[1672769832366,4.40588113,1208.6,1208.5,33.87687741]
[1672769832591,4.40588113,1208.6,1208.5,43.80653741]
[1672769832813,0.07105634,1208.6,1208.5,39.96576789]
[1672769833018,4.40588113,1208.6,1208.5,39.96576789]
[1672769833233,0.07105634,1208.6,1208.5,30.03610789]
[1672769833777,4.40588113,1208.6,1208.5,33.87687741]
[1672769833985,4.40588113,1208.6,1208.5,30.03610789]
[1672769834195,4.40588113,1208.6,1208.5,10.17678789]
[1672769836461,4.40588113,1208.6,1208.5,20.10644789]
[1672769844639,4.40588113,1208.6,1208.5,10.17678789]
[1672769844882,4.40588113,1208.6,1208.5,10.1738871]
[1672769848249,26.76509472,1208.6,1208.5,0.2442271]
[1672769848414,6.97141472,1208.6,1208.5,0.1782271]
[1672769848997,2.63658993,1208.6,1208.5,0.1782271]
[1672769849216,2.57258993,1208.6,1208.5,0.1782271]
[1672769850051,12.50142993,1208.6,1208.5,0.1782271]
[1672769850379,12.56542993,1208.6,1208.5,0.1782271]
[1672769850995,22.49426993,1208.6,1208.5,0.1782271]
[1672769851374,37.53852468,1208.6,1208.5,0.1782271]
[1672769852204,27.60968468,1208.6,1208.5,0.1782271]
[1672769852416,37.53852468,1208.6,1208.5,0.1782271]
[1672769853696,27.60968468,1208.6,1208.5,0.1782271]
[1672769853900,37.53852468,1208.6,1208.5,0.1782271]
[1672769854263,27.60968468,1208.6,1208.5,0.1782271]
[1672769854832,17.68084468,1208.6,1208.5,0.1782271]
[1672769855726,7.75200468,1208.6,1208.5,0.30250718]
[1672769858122,6.97264175,1208.6,1208.5,0.30250718]
[1672769859499,2.63658993,1208.6,1208.5,0.30250718]
[1672769859816,2.57258993,1208.6,1208.5,0.30250718]
[1672769860592,6.90866848,1208.6,1208.5,0.30250718]
[1672769860803,6.97266848,1208.6,1208.5,0.30250718]
[1672769862332,4.47113489,1208.6,1208.5,10.23216718]
[1672769862542,8.12452155,1208.6,1208.5,50.13677784]
[1672769862797,8.18852155,1208.6,1208.5,53.13677784]
[1672769864227,3.852443,1208.6,1208.5,53.13677784]
[1672769864439,0.07105634,1208.6,1208.5,53.13677784]
[1672769864781,0.07105634,1208.6,1208.5,58.65465562]
[1672769865114,0.07105634,1208.7,1208.5,58.65465562]
[1672769869806,0.07105634,1208.7,1208.5,58.6577434]
[1672769873964,3.71461157,1208.6,1208.5,58.6577434]
[1672769877865,3.69261157,1208.6,1208.5,58.6577434]
[1672769884793,7.53338109,1208.6,1208.5,54.81697388]
[1672769885016,7.59738109,1208.6,1208.5,54.81697388]
[1672769886273,3.75661157,1208.6,1208.5,54.81697388]
[1672769886440,3.69261157,1208.6,1208.5,54.81697388]
[1672769887184,7.53338109,1208.6,1208.5,54.81697388]
[1672769887388,7.59738109,1208.6,1208.5,54.81697388]
[1672769890979,3.90476952,1208.6,1208.5,54.81697388]
[1672769891207,3.84076952,1208.6,1208.5,54.81697388]
[1672769891417,7.67043743,1208.7,1208.5,54.81697388]
[1672769891798,3.69261157,1208.6,1208.5,54.81697388]
[1672769892264,7.53338109,1208.6,1208.5,54.81697388]
[1672769892471,7.59738109,1208.6,1208.5,54.81697388]
[1672769892656,3.75661157,1208.6,1208.5,54.81697388]
[1672769892872,3.69261157,1208.6,1208.5,54.81697388]
[1672769893147,7.53338109,1208.6,1208.5,54.81697388]
[1672769893315,7.59738109,1208.6,1208.5,54.81697388]
[1672769895118,3.75661157,1208.6,1208.5,54.81697388]
[1672769895289,7.53338109,1208.6,1208.5,54.81697388]
[1672769895504,3.75661157,1208.6,1208.5,54.81697388]
[1672769895838,7.53338109,1208.6,1208.5,54.81697388]
[1672769896003,7.59738109,1208.6,1208.5,54.81697388]
[1672769897158,7.49738109,1208.6,1208.5,54.81697388]
[1672769897615,3.16076109,1208.6,1208.5,54.81697388]
[1672769897804,3.16076109,1208.6,1208.5,61.43491512]
[1672769897805,5.57434832,1208.6,1208.5,61.43491512]
[1672769898022,5.63834832,1208.6,1208.5,72.43491512]
[1672769898903,5.63834832,1208.6,1208.5,79.43491512]
[1672769899214,5.63834832,1208.6,1208.5,80.05611512]
[1672769899372,5.58834832,1208.6,1208.5,80.05611512]
[1672769899580,5.59034832,1208.6,1208.5,80.05411512]
[1672769900041,5.59034832,1208.6,1208.5,73.05611512]
[1672769900042,5.58834832,1208.6,1208.5,73.05611512]
[1672769900254,3.11076109,1208.6,1208.5,73.05611512]
[1672769900576,5.52355373,1208.6,1208.5,73.05611512]
[1672769900746,5.58755373,1208.6,1208.5,73.05611512]
[1672769902427,2.54079264,1208.6,1208.5,73.05611512]
[1672769902639,2.47679264,1208.6,1208.5,73.05611512]
[1672769905648,2.47679264,1208.7,1208.5,73.05611512]
[1672769905847,2.47679264,1208.7,1208.6,20.82963066]
[1672769906172,2.47679264,1208.7,1208.6,68.78940217]
[1672769906483,5.57106934,1208.7,1208.6,68.78940217]
[1672769906622,5.63706934,1208.7,1208.6,68.78940217]
[1672769907314,5.63706934,1208.7,1208.6,70.84940217]
[1672769909334,2.54279264,1208.7,1208.6,70.84940217]
[1672769909545,2.47679264,1208.7,1208.6,81.84940217]
[1672769909695,2.47679264,1208.7,1208.6,82.16884162]
[1672769910330,2.47679264,1208.7,1208.6,76.66884162]
[1672769910588,2.47679264,1208.7,1208.6,74.60884162]
[1672769911018,5.57106934,1208.7,1208.6,74.60884162]
[1672769911168,5.63706934,1208.7,1208.6,74.60884162]
[1672769911839,5.63435676,1208.7,1208.6,63.60884162]
[1672769912075,5.63435676,1208.7,1208.6,74.60884162]
[1672769912265,3.1602767,1208.7,1208.6,74.60884162]
[1672769912480,3.0942767,1208.7,1208.6,74.60884162]
[1672769912714,5.56847695,1208.7,1208.6,74.60884162]
[1672769912926,9.47524872,1208.7,1208.6,70.7680721]
[1672769913147,6.99944511,1208.7,1208.6,64.67963125]
[1672769913426,7.62188249,1208.7,1208.6,74.60847125]
[1672769913640,3.15869512,1208.7,1208.6,74.60847125]
[1672769913870,6.93346464,1208.7,1208.6,74.60847125]
[1672769914088,6.99946464,1208.7,1208.6,74.60847125]
[1672769914846,6.99956666,1208.7,1208.6,64.67963125]
[1672769915268,6.99956809,1208.7,1208.6,64.67963125]
[1672769916080,3.90676952,1208.7,1208.6,74.60847125]
[1672769916174,3.84076952,1208.7,1208.6,74.60847125]
[1672769916780,3.84076952,1208.7,1208.6,63.60847125]
[1672769916993,3.84076952,1208.7,1208.6,74.60847125]
[1672769917256,3.84076952,1208.7,1208.6,63.60847125]
[1672769917624,3.09228255,1208.7,1208.6,63.60847125]
[1672769917836,6.93305207,1208.7,1208.6,63.60847125]
[1672769918094,6.99905207,1208.7,1208.6,63.60847125]
[1672769919939,6.99905207,1208.7,1208.6,74.60847125]
[1672769921069,3.15828255,1208.7,1208.6,74.60847125]
[1672769921354,3.09228255,1208.7,1208.6,74.60847125]
[1672769921567,3.09228255,1208.7,1208.6,72.55847125]
[1672769922773,6.93305207,1208.7,1208.6,72.55469412]
[1672769923145,6.99905207,1208.7,1208.6,72.55469412]
[1672769923296,6.99905207,1208.7,1208.6,54.44744261]
[1672769923509,6.99905207,1208.7,1208.6,39.37882059]
[1672769923510,7.62188249,1208.7,1208.6,39.37882059]
[1672769923796,7.62188249,1208.7,1208.6,27.39198059]
[1672769923985,7.62151207,1208.7,1208.6,37.32082059]
[1672769925100,7.62151207,1208.7,1208.6,41.15751405]
[1672769925530,3.78111297,1208.7,1208.6,41.15751405]
[1672769925747,3.71511297,1208.7,1208.6,41.15751405]
[1672769927886,3.71511297,1208.7,1208.6,51.08635405]